[Event "Titled Tuesday Blitz August 24 2021"]
[White "Langner, Ladislav"]
[Black "Leitao, Rafael"]
[WhiteFideId "300403"]
[BlackFideId "2101246"]
[WhiteElo "2346"]
[BlackElo "2609"]
[Result "1/2-1/2"]
[Round "01"]
[TimeControl "180+1"]
[Date "2021.08.24"]
[WhiteClock "0:00:07"]
[BlackClock "0:00:11"]

1. e4 {[%clk 0:03:00]}  e5 {[%clk 0:02:56]} 2. Bc4 {[%clk 0:03:00]}  Nc6 {[%clk 0:02:55]} 3. d3 {[%clk 0:02:59]}  Nf6 {[%clk 0:02:53]} 4. Nf3 {[%clk 0:02:58]}  h6 {[%clk 0:02:52]} 5. c3 {[%clk 0:02:55]}  d6 {[%clk 0:02:50]} 6. Nbd2 {[%clk 0:02:52]}  g6 {[%clk 0:02:47]} 7. d4 {[%clk 0:02:51]}  Bg7 {[%clk 0:02:46]} 8. O-O {[%clk 0:02:47]}  O-O {[%clk 0:02:45]} 9. dxe5 {[%clk 0:02:42]}  dxe5 {[%clk 0:02:44]} 10. Qe2 {[%clk 0:02:39]}  Qe7 {[%clk 0:02:39]} 11. a4 {[%clk 0:02:33]}  Nh5 {[%clk 0:02:38]} 12. g3 {[%clk 0:02:31]}  Bg4 {[%clk 0:02:28]} 13. Re1 {[%clk 0:02:22]}  Rad8 {[%clk 0:02:26]} 14. Kg2 {[%clk 0:02:07]}  Qd7 {[%clk 0:02:24]} 15. Bb5 {[%clk 0:01:56]}  a6 {[%clk 0:02:10]} 16. Bxc6 {[%clk 0:01:53]}  bxc6 {[%clk 0:02:04]} 17. Nc4 {[%clk 0:01:47]}  Qe6 {[%clk 0:01:39]} 18. Ne3 {[%clk 0:01:44]}  Bh3+ {[%clk 0:01:38]} 19. Kh1 {[%clk 0:01:44]}  f5 {[%clk 0:01:37]} 20. exf5 {[%clk 0:01:32]}  Bxf5 {[%clk 0:01:27]} 21. Nxf5 {[%clk 0:01:14]}  Qxf5 {[%clk 0:01:26]} 22. Kg2 {[%clk 0:01:14]}  Rd3 {[%clk 0:01:16]} 23. Nh4 {[%clk 0:01:10]}  Qd7 {[%clk 0:01:09]} 24. Nxg6 {[%clk 0:01:09]}  Qd5+ {[%clk 0:00:54]} 25. Kg1 {[%clk 0:01:00]}  Rf7 {[%clk 0:00:26]} 26. Qxh5 {[%clk 0:00:56]}  Rdf3 {[%clk 0:00:27]} 27. Be3 {[%clk 0:00:51]}  Qe6 {[%clk 0:00:27]} 28. Nh4 {[%clk 0:00:47]}  R3f6 {[%clk 0:00:25]} 29. Rad1 {[%clk 0:00:45]}  Kh7 {[%clk 0:00:25]} 30. Rd8 {[%clk 0:00:40]}  Bf8 {[%clk 0:00:23]} 31. Red1 {[%clk 0:00:38]}  Be7 {[%clk 0:00:23]} 32. Re8 {[%clk 0:00:32]}  Rf8 {[%clk 0:00:17]} 33. Rxf8 {[%clk 0:00:30]}  Rxf8 {[%clk 0:00:16]} 34. Rd2 {[%clk 0:00:23]}  e4 {[%clk 0:00:16]} 35. Rd4 {[%clk 0:00:19]}  Bf6 {[%clk 0:00:13]} 36. Qg6+ {[%clk 0:00:16]}  Kh8 {[%clk 0:00:12]} 37. Qxh6+ {[%clk 0:00:14]}  Kg8 {[%clk 0:00:11]} 38. Qg6+ {[%clk 0:00:14]}  Kh8 {[%clk 0:00:12]} 39. Rxe4 {[%clk 0:00:14]}  Qd5 {[%clk 0:00:10]} 40. Qh6+ {[%clk 0:00:14]}  Kg8 {[%clk 0:00:09]} 41. Rg4+ {[%clk 0:00:14]}  Kf7 {[%clk 0:00:10]} 42. Qg6+ {[%clk 0:00:14]}  Ke7 {[%clk 0:00:10]} 43. Re4+ {[%clk 0:00:15]}  Kd7 {[%clk 0:00:10]} 44. Bd4 {[%clk 0:00:13]}  Bxh4 {[%clk 0:00:09]} 45. Rxh4 {[%clk 0:00:11]}  Kc8 {[%clk 0:00:08]} 46. Qg4+ {[%clk 0:00:10]}  Kb7 {[%clk 0:00:09]} 47. Qe2 {[%clk 0:00:11]}  Qd7 {[%clk 0:00:08]} 48. Re4 {[%clk 0:00:10]}  Rf5 {[%clk 0:00:06]} 49. Re7 {[%clk 0:00:10]}  Qd5 {[%clk 0:00:06]} 50. Be3 {[%clk 0:00:10]}  Qd6 {[%clk 0:00:05]} 51. Bf4 {[%clk 0:00:09]}  Rxf4 {[%clk 0:00:05]} 52. gxf4 {[%clk 0:00:09]}  Qg6+ {[%clk 0:00:06]} 53. Kh1 {[%clk 0:00:07]}  Qb1+ {[%clk 0:00:07]} 54. Kg2 {[%clk 0:00:07]}  Qg6+ {[%clk 0:00:07]} 55. Kf3 {[%clk 0:00:06]}  Qh5+ {[%clk 0:00:07]} 56. Ke3 {[%clk 0:00:06]}  Qc5+ {[%clk 0:00:07]} 57. Kd2 {[%clk 0:00:06]}  Qd5+ {[%clk 0:00:07]} 58. Kc2 {[%clk 0:00:07]}  Qf5+ {[%clk 0:00:07]} 59. Kc1 {[%clk 0:00:06]}  Qxf4+ {[%clk 0:00:07]} 60. Kb1 {[%clk 0:00:07]}  Qf5+ {[%clk 0:00:08]} 61. Ka2 {[%clk 0:00:07]}  Qf4 {[%clk 0:00:08]} 62. a5 {[%clk 0:00:06]}  Qa4+ {[%clk 0:00:08]} 63. Kb1 {[%clk 0:00:06]}  Qb3 {[%clk 0:00:08]} 64. Re4 {[%clk 0:00:06]}  Qd5 {[%clk 0:00:07]} 65. Rb4+ {[%clk 0:00:06]}  Ka7 {[%clk 0:00:06]} 66. Qe3+ {[%clk 0:00:06]}  c5 {[%clk 0:00:07]} 67. Re4 {[%clk 0:00:05]}  Qd1+ {[%clk 0:00:07]} 68. Ka2 {[%clk 0:00:05]}  Qd5+ {[%clk 0:00:08]} 69. Kb1 {[%clk 0:00:05]}  Qd1+ {[%clk 0:00:08]} 70. Qc1 {[%clk 0:00:04]}  Qd3+ {[%clk 0:00:07]} 71. Qc2 {[%clk 0:00:05]}  Qf1+ {[%clk 0:00:08]} 72. Ka2 {[%clk 0:00:05]}  Qb5 {[%clk 0:00:08]} 73. c4 {[%clk 0:00:05]}  Qxa5+ {[%clk 0:00:08]} 74. Kb1 {[%clk 0:00:06]}  Qb6 {[%clk 0:00:09]} 75. b3 {[%clk 0:00:05]}  Qd6 {[%clk 0:00:09]} 76. Kb2 {[%clk 0:00:06]}  Kb6 {[%clk 0:00:09]} 77. Rf4 {[%clk 0:00:05]}  Qxf4 {[%clk 0:00:08]} 78. Qc3 {[%clk 0:00:05]}  Qxf2+ {[%clk 0:00:08]} 79. Ka3 {[%clk 0:00:05]}  Qxh2 {[%clk 0:00:08]} 80. Qf6+ {[%clk 0:00:05]}  c6 {[%clk 0:00:08]} 81. Qd8+ {[%clk 0:00:05]}  Qc7 {[%clk 0:00:08]} 82. Qa8 {[%clk 0:00:05]}  Qb7 {[%clk 0:00:08]} 83. Qxb7+ {[%clk 0:00:04]}  Kxb7 {[%clk 0:00:08]} 84. Ka4 {[%clk 0:00:05]}  Kb6 {[%clk 0:00:08]} 85. Ka3 {[%clk 0:00:05]}  a5 {[%clk 0:00:09]} 86. Ka4 {[%clk 0:00:05]}  Ka6 {[%clk 0:00:09]} 87. Ka3 {[%clk 0:00:06]}  Kb6 {[%clk 0:00:10]} 88. Ka4 {[%clk 0:00:06]}  Ka6 {[%clk 0:00:10]} 89. Ka3 {[%clk 0:00:07]}  Kb6 {[%clk 0:00:11]} 1/2-1/2


[Site "https://www.chess.com"]

[Event "Titled Tuesday Blitz August 24 2021"]
[White "Loy, Konstantin"]
[Black "Lashkin, Jegor"]
[WhiteFideId "14122499"]
[BlackFideId "13907808"]
[WhiteElo "2084"]
[BlackElo "2293"]
[Result "0-1"]
[Round "01"]
[TimeControl "180+1"]
[Date "2021.08.24"]
[WhiteClock "0:00:14"]
[BlackClock "0:00:15"]

1. e4 {[%clk 0:02:53]}  c5 {[%clk 0:02:59]} 2. Nf3 {[%clk 0:02:50]}  d6 {[%clk 0:03:00]} 3. d4 {[%clk 0:02:50]}  cxd4 {[%clk 0:03:00]} 4. Qxd4 {[%clk 0:02:50]}  Nc6 {[%clk 0:02:59]} 5. Bb5 {[%clk 0:02:50]}  a6 {[%clk 0:02:59]} 6. Bxc6+ {[%clk 0:02:50]}  bxc6 {[%clk 0:03:00]} 7. c4 {[%clk 0:02:50]}  e5 {[%clk 0:03:00]} 8. Qd3 {[%clk 0:02:50]}  Qc7 {[%clk 0:02:59]} 9. Nc3 {[%clk 0:02:50]}  Ne7 {[%clk 0:02:59]} 10. Be3 {[%clk 0:02:42]}  Ng6 {[%clk 0:02:59]} 11. O-O {[%clk 0:02:38]}  Be7 {[%clk 0:02:58]} 12. c5 {[%clk 0:02:30]}  dxc5 {[%clk 0:02:57]} 13. Na4 {[%clk 0:02:30]}  a5 {[%clk 0:02:24]} 14. Rfc1 {[%clk 0:02:16]}  Ba6 {[%clk 0:02:15]} 15. Qc3 {[%clk 0:02:08]}  c4 {[%clk 0:02:14]} 16. Bb6 {[%clk 0:01:21]}  Qd6 {[%clk 0:02:07]} 17. Bc5 {[%clk 0:01:09]}  Qf6 {[%clk 0:02:05]} 18. Bxe7 {[%clk 0:01:03]}  Qxe7 {[%clk 0:02:04]} 19. Nb6 {[%clk 0:01:03]}  Ra7 {[%clk 0:01:50]} 20. Nxc4 {[%clk 0:01:03]}  Bxc4 {[%clk 0:01:41]} 21. Qxc4 {[%clk 0:01:03]}  O-O {[%clk 0:01:41]} 22. Qxc6 {[%clk 0:01:02]}  Nf4 {[%clk 0:01:40]} 23. Qc5 {[%clk 0:00:58]}  Ne2+ {[%clk 0:01:39]} 24. Kf1 {[%clk 0:00:54]}  Nxc1 {[%clk 0:01:39]} 25. Rxc1 {[%clk 0:00:55]}  f6 {[%clk 0:01:31]} 26. Qxe7 {[%clk 0:00:55]}  Rxe7 {[%clk 0:01:31]} 27. Rc5 {[%clk 0:00:55]}  Rb8 {[%clk 0:01:30]} 28. b3 {[%clk 0:00:52]}  a4 {[%clk 0:01:26]} 29. Nd2 {[%clk 0:00:52]}  Rd7 {[%clk 0:01:23]} 30. Ke2 {[%clk 0:00:47]}  Rbd8 {[%clk 0:01:20]} 31. Nc4 {[%clk 0:00:46]}  axb3 {[%clk 0:01:20]} 32. axb3 {[%clk 0:00:46]}  Rb8 {[%clk 0:01:19]} 33. Nd2 {[%clk 0:00:44]}  Kf7 {[%clk 0:01:18]} 34. Rc3 {[%clk 0:00:42]}  Ra8 {[%clk 0:01:17]} 35. Rd3 {[%clk 0:00:37]}  Rxd3 {[%clk 0:01:14]} 36. Kxd3 {[%clk 0:00:38]}  Rd8+ {[%clk 0:01:10]} 37. Ke3 {[%clk 0:00:37]}  Rb8 {[%clk 0:01:10]} 38. Kd3 {[%clk 0:00:37]}  Ke6 {[%clk 0:01:09]} 39. Kc3 {[%clk 0:00:36]}  Rc8+ {[%clk 0:01:07]} 40. Nc4 {[%clk 0:00:36]}  Ra8 {[%clk 0:01:04]} 41. Kb2 {[%clk 0:00:35]}  Rd8 {[%clk 0:00:54]} 42. Kc2 {[%clk 0:00:31]}  Rd4 {[%clk 0:00:54]} 43. f3 {[%clk 0:00:31]}  g6 {[%clk 0:00:50]} 44. Ne3 {[%clk 0:00:31]}  f5 {[%clk 0:00:49]} 45. exf5+ {[%clk 0:00:30]}  gxf5 {[%clk 0:00:49]} 46. Kc3 {[%clk 0:00:31]}  Rd8 {[%clk 0:00:47]} 47. b4 {[%clk 0:00:31]}  f4 {[%clk 0:00:45]} 48. Nc4 {[%clk 0:00:29]}  Rg8 {[%clk 0:00:45]} 49. b5 {[%clk 0:00:23]}  Rxg2 {[%clk 0:00:45]} 50. b6 {[%clk 0:00:24]}  Rg7 {[%clk 0:00:33]} 51. Kb4 {[%clk 0:00:21]}  Kd5 {[%clk 0:00:23]} 52. Kb5 {[%clk 0:00:20]}  e4 {[%clk 0:00:16]} 53. fxe4+ {[%clk 0:00:20]}  Kxe4 {[%clk 0:00:17]} 54. Nd6+ {[%clk 0:00:20]}  Kd3 {[%clk 0:00:16]} 55. b7 {[%clk 0:00:12]}  Rxb7+ {[%clk 0:00:15]} 56. Nxb7 {[%clk 0:00:13]}  f3 {[%clk 0:00:15]} 57. Nc5+ {[%clk 0:00:14]}  Ke3 {[%clk 0:00:15]} 0-1


[Site "https://www.chess.com"]

[Event "Titled Tuesday Blitz August 24 2021"]
[White "MATHEUSMDR2005"]
[Black "Timofeev, Artyom"]
[BlackFideId "4140419"]
[WhiteElo "2450"]
[BlackElo "2582"]
[Result "0-1"]
[Round "01"]
[TimeControl "180+1"]
[Date "2021.08.24"]
[WhiteClock "0:00:03"]
[BlackClock "0:01:15"]

1. c4 {[%clk 0:03:00]}  Nf6 {[%clk 0:02:58]} 2. Nc3 {[%clk 0:03:00]}  e5 {[%clk 0:02:57]} 3. Nf3 {[%clk 0:02:54]}  Nc6 {[%clk 0:02:57]} 4. e4 {[%clk 0:02:49]}  Bb4 {[%clk 0:02:53]} 5. d3 {[%clk 0:02:48]}  O-O {[%clk 0:02:52]} 6. a3 {[%clk 0:02:48]}  Bxc3+ {[%clk 0:02:52]} 7. bxc3 {[%clk 0:02:49]}  h6 {[%clk 0:02:52]} 8. Be2 {[%clk 0:02:44]}  d6 {[%clk 0:02:52]} 9. O-O {[%clk 0:02:44]}  Re8 {[%clk 0:02:47]} 10. Ne1 {[%clk 0:02:31]}  Nd7 {[%clk 0:02:45]} 11. f4 {[%clk 0:02:27]}  exf4 {[%clk 0:02:44]} 12. Bxf4 {[%clk 0:02:27]}  Nc5 {[%clk 0:02:44]} 13. Rb1 {[%clk 0:02:21]}  f5 {[%clk 0:02:43]} 14. Bh5 {[%clk 0:02:05]}  Rf8 {[%clk 0:02:40]} 15. Qd2 {[%clk 0:01:29]}  fxe4 {[%clk 0:02:37]} 16. dxe4 {[%clk 0:01:20]}  Be6 {[%clk 0:02:33]} 17. Nd3 {[%clk 0:01:00]}  b6 {[%clk 0:02:21]} 18. Nxc5 {[%clk 0:00:48]}  bxc5 {[%clk 0:02:10]} 19. Bxh6 {[%clk 0:00:45]}  Qh4 {[%clk 0:02:08]} 20. Qg5 {[%clk 0:00:37]}  Qxg5 {[%clk 0:02:05]} 21. Bxg5 {[%clk 0:00:38]}  Bxc4 {[%clk 0:02:05]} 22. Rxf8+ {[%clk 0:00:36]}  Rxf8 {[%clk 0:02:05]} 23. Bf3 {[%clk 0:00:34]}  Ba6 {[%clk 0:01:59]} 24. h4 {[%clk 0:00:29]}  Ne5 {[%clk 0:01:59]} 25. Kf2 {[%clk 0:00:27]}  Bd3 {[%clk 0:01:56]} 26. Rb7 {[%clk 0:00:19]}  Bxe4 {[%clk 0:01:50]} 27. Rxa7 {[%clk 0:00:18]}  Nxf3 {[%clk 0:01:47]} 28. gxf3 {[%clk 0:00:17]}  Rxf3+ {[%clk 0:01:48]} 29. Ke2 {[%clk 0:00:17]}  Rxc3 {[%clk 0:01:48]} 30. Rxc7 {[%clk 0:00:17]}  Rxa3 {[%clk 0:01:48]} 31. Be7 {[%clk 0:00:17]}  Rd3 {[%clk 0:01:37]} 32. Rd7 {[%clk 0:00:17]}  c4 {[%clk 0:01:32]} 33. Rxd6 {[%clk 0:00:16]}  Rh3 {[%clk 0:01:30]} 34. Rd8+ {[%clk 0:00:14]}  Kf7 {[%clk 0:01:29]} 35. Bb4 {[%clk 0:00:09]}  Rb3 {[%clk 0:01:27]} 36. Rb8 {[%clk 0:00:04]}  c3 {[%clk 0:01:22]} 37. Kd1 {[%clk 0:00:02]}  c2+ {[%clk 0:01:19]} 38. Ke2 {[%clk 0:00:02]}  c1=Q {[%clk 0:01:17]} 39. Rf8+ {[%clk 0:00:03]}  Ke6 {[%clk 0:01:15]} 0-1


[Site "https://www.chess.com"]

[Event "Titled Tuesday Blitz August 24 2021"]
[White "Maghsoodloo, Parham"]
[Black "Heinemann, Josefine"]
[WhiteFideId "12539929"]
[BlackFideId "12900460"]
[WhiteElo "2601"]
[BlackElo "2300"]
[Result "1-0"]
[Round "01"]
[TimeControl "180+1"]
[Date "2021.08.24"]
[WhiteClock "0:00:49"]
[BlackClock "0:00:05"]

1. e4 {[%clk 0:02:59]}  e5 {[%clk 0:02:53]} 2. Nf3 {[%clk 0:02:59]}  Nc6 {[%clk 0:02:53]} 3. Bc4 {[%clk 0:02:59]}  Bc5 {[%clk 0:02:52]} 4. c3 {[%clk 0:02:59]}  Nf6 {[%clk 0:02:52]} 5. d3 {[%clk 0:02:59]}  a6 {[%clk 0:02:51]} 6. a4 {[%clk 0:02:58]}  d6 {[%clk 0:02:49]} 7. O-O {[%clk 0:02:58]}  h6 {[%clk 0:02:46]} 8. Nbd2 {[%clk 0:02:58]}  O-O {[%clk 0:02:45]} 9. Re1 {[%clk 0:02:57]}  Ba7 {[%clk 0:02:40]} 10. Nf1 {[%clk 0:02:56]}  Re8 {[%clk 0:02:36]} 11. Ng3 {[%clk 0:02:50]}  Be6 {[%clk 0:02:36]} 12. Bxe6 {[%clk 0:02:46]}  Rxe6 {[%clk 0:02:34]} 13. b4 {[%clk 0:02:43]}  d5 {[%clk 0:02:31]} 14. Qc2 {[%clk 0:02:39]}  dxe4 {[%clk 0:02:18]} 15. dxe4 {[%clk 0:02:37]}  Rd6 {[%clk 0:02:10]} 16. Bb2 {[%clk 0:02:27]}  Ng4 {[%clk 0:02:02]} 17. Re2 {[%clk 0:02:25]}  b5 {[%clk 0:01:32]} 18. h3 {[%clk 0:02:15]}  Nf6 {[%clk 0:01:30]} 19. Ree1 {[%clk 0:02:05]}  Qd7 {[%clk 0:01:22]} 20. Red1 {[%clk 0:01:46]}  Rd8 {[%clk 0:01:15]} 21. Rxd6 {[%clk 0:01:46]}  Qxd6 {[%clk 0:01:14]} 22. axb5 {[%clk 0:01:44]}  axb5 {[%clk 0:01:13]} 23. Qe2 {[%clk 0:01:44]}  Qd3 {[%clk 0:01:04]} 24. Kf1 {[%clk 0:01:28]}  Bb6 {[%clk 0:00:59]} 25. Qxd3 {[%clk 0:01:25]}  Rxd3 {[%clk 0:01:00]} 26. Ke2 {[%clk 0:01:25]}  Rd8 {[%clk 0:00:56]} 27. Ne1 {[%clk 0:01:25]}  h5 {[%clk 0:00:46]} 28. f3 {[%clk 0:01:17]}  g6 {[%clk 0:00:39]} 29. Nd3 {[%clk 0:01:16]}  h4 {[%clk 0:00:34]} 30. Nf1 {[%clk 0:01:16]}  Nh5 {[%clk 0:00:34]} 31. Bc1 {[%clk 0:01:16]}  f5 {[%clk 0:00:29]} 32. Bg5 {[%clk 0:01:14]}  Rd7 {[%clk 0:00:23]} 33. Bxh4 {[%clk 0:01:08]}  fxe4 {[%clk 0:00:20]} 34. fxe4 {[%clk 0:01:08]}  Kg7 {[%clk 0:00:18]} 35. Bg5 {[%clk 0:01:03]}  Nf6 {[%clk 0:00:17]} 36. Nd2 {[%clk 0:01:01]}  Ne8 {[%clk 0:00:11]} 37. Rf1 {[%clk 0:00:56]}  Nd6 {[%clk 0:00:11]} 38. Nxe5 {[%clk 0:00:54]}  Nxe5 {[%clk 0:00:10]} 39. Bf6+ {[%clk 0:00:54]}  Kh7 {[%clk 0:00:11]} 40. Bxe5 {[%clk 0:00:55]}  Re7 {[%clk 0:00:10]} 41. Bxd6 {[%clk 0:00:54]}  cxd6 {[%clk 0:00:11]} 42. Kd3 {[%clk 0:00:54]}  Kg7 {[%clk 0:00:09]} 43. Nf3 {[%clk 0:00:54]}  Rf7 {[%clk 0:00:09]} 44. Nh2 {[%clk 0:00:50]}  Re7 {[%clk 0:00:08]} 45. Ng4 {[%clk 0:00:50]}  Rd7 {[%clk 0:00:05]} 46. Nf6 {[%clk 0:00:50]}  Rf7 {[%clk 0:00:05]} 47. Ne8+ {[%clk 0:00:49]} 1-0


[Site "https://www.chess.com"]

[Event "Titled Tuesday Blitz August 24 2021"]
[White "Maly, Alexey"]
[Black "davigator"]
[WhiteFideId "14103184"]
[WhiteElo "2250"]
[BlackElo "2368"]
[Result "1/2-1/2"]
[Round "01"]
[TimeControl "180+1"]
[Date "2021.08.24"]
[WhiteClock "0:02:47"]
[BlackClock "0:02:38"]

1. d4 {[%clk 0:02:58]}  Nf6 {[%clk 0:02:59]} 2. c4 {[%clk 0:02:58]}  e6 {[%clk 0:02:59]} 3. Nf3 {[%clk 0:02:59]}  Bb4+ {[%clk 0:02:58]} 4. Nbd2 {[%clk 0:02:58]}  b6 {[%clk 0:02:57]} 5. g3 {[%clk 0:02:58]}  a5 {[%clk 0:02:56]} 6. Bg2 {[%clk 0:02:58]}  c6 {[%clk 0:02:57]} 7. O-O {[%clk 0:02:58]}  O-O {[%clk 0:02:55]} 8. e4 {[%clk 0:02:57]}  d5 {[%clk 0:02:54]} 9. e5 {[%clk 0:02:56]}  Nfd7 {[%clk 0:02:51]} 10. Qc2 {[%clk 0:02:53]}  Ba6 {[%clk 0:02:49]} 11. b3 {[%clk 0:02:53]}  h6 {[%clk 0:02:47]} 12. Rd1 {[%clk 0:02:52]}  Re8 {[%clk 0:02:44]} 13. Bb2 {[%clk 0:02:51]}  Nf8 {[%clk 0:02:43]} 14. a3 {[%clk 0:02:51]}  Be7 {[%clk 0:02:42]} 15. Rac1 {[%clk 0:02:50]}  Nbd7 {[%clk 0:02:41]} 16. cxd5 {[%clk 0:02:49]}  cxd5 {[%clk 0:02:41]} 17. Qc7 {[%clk 0:02:49]}  Rc8 {[%clk 0:02:40]} 18. Qxd8 {[%clk 0:02:49]}  Rexd8 {[%clk 0:02:40]} 19. Bf1 {[%clk 0:02:48]}  Bxf1 {[%clk 0:02:39]} 20. Kxf1 {[%clk 0:02:48]}  Nb8 {[%clk 0:02:38]} 21. Rxc8 {[%clk 0:02:47]}  Rxc8 {[%clk 0:02:38]} 22. Rc1 {[%clk 0:02:47]}  Rxc1+ {[%clk 0:02:38]} 1/2-1/2


[Site "https://www.chess.com"]

[Event "Titled Tuesday Blitz August 24 2021"]
[White "Martins, Igor Carvalho Ribeiro"]
[Black "Kamsky, Gata"]
[WhiteFideId "2162962"]
[BlackFideId "2000024"]
[WhiteElo "2449"]
[BlackElo "2644"]
[Result "0-1"]
[Round "01"]
[TimeControl "180+1"]
[Date "2021.08.24"]
[WhiteClock "0:00:14"]
[BlackClock "0:00:58"]

1. Nf3 {[%clk 0:03:00]}  Nf6 {[%clk 0:02:58]} 2. c4 {[%clk 0:03:00]}  g6 {[%clk 0:02:57]} 3. Nc3 {[%clk 0:02:59]}  d5 {[%clk 0:02:56]} 4. cxd5 {[%clk 0:02:59]}  Nxd5 {[%clk 0:02:56]} 5. e4 {[%clk 0:02:59]}  Nxc3 {[%clk 0:02:53]} 6. dxc3 {[%clk 0:02:59]}  Qxd1+ {[%clk 0:02:53]} 7. Kxd1 {[%clk 0:03:00]}  f6 {[%clk 0:02:54]} 8. Kc2 {[%clk 0:02:58]}  e5 {[%clk 0:02:53]} 9. Bc4 {[%clk 0:02:57]}  Bc5 {[%clk 0:02:50]} 10. Rf1 {[%clk 0:02:52]}  Nd7 {[%clk 0:02:46]} 11. a4 {[%clk 0:02:50]}  a5 {[%clk 0:02:46]} 12. Ne1 {[%clk 0:02:43]}  Bb6 {[%clk 0:02:05]} 13. Bh6 {[%clk 0:02:34]}  Ke7 {[%clk 0:02:04]} 14. Nd3 {[%clk 0:02:23]}  Nc5 {[%clk 0:02:03]} 15. Nxc5 {[%clk 0:01:58]}  Bxc5 {[%clk 0:02:02]} 16. f4 {[%clk 0:01:51]}  Bd6 {[%clk 0:01:55]} 17. g3 {[%clk 0:01:42]}  Bh3 {[%clk 0:01:52]} 18. Rfe1 {[%clk 0:01:24]}  Rhd8 {[%clk 0:01:46]} 19. fxe5 {[%clk 0:01:18]}  Bxe5 {[%clk 0:01:46]} 20. Bf4 {[%clk 0:01:18]}  Rd6 {[%clk 0:01:40]} 21. Rad1 {[%clk 0:01:14]}  Rad8 {[%clk 0:01:39]} 22. Rxd6 {[%clk 0:01:13]}  Rxd6 {[%clk 0:01:39]} 23. Bxe5 {[%clk 0:01:10]}  fxe5 {[%clk 0:01:38]} 24. Re2 {[%clk 0:01:10]}  Rf6 {[%clk 0:01:36]} 25. Rd2 {[%clk 0:01:06]}  Bd7 {[%clk 0:01:27]} 26. Bb5 {[%clk 0:00:59]}  Be6 {[%clk 0:01:26]} 27. b4 {[%clk 0:00:53]}  b6 {[%clk 0:01:26]} 28. Kb2 {[%clk 0:00:43]}  Rf3 {[%clk 0:01:24]} 29. bxa5 {[%clk 0:00:38]}  bxa5 {[%clk 0:01:19]} 30. Bc6 {[%clk 0:00:38]}  Rf8 {[%clk 0:01:13]} 31. Bd5 {[%clk 0:00:37]}  Bd7 {[%clk 0:01:11]} 32. Bb3 {[%clk 0:00:34]}  Bc6 {[%clk 0:01:11]} 33. Ka3 {[%clk 0:00:28]}  Rf3 {[%clk 0:01:08]} 34. Bd5 {[%clk 0:00:27]}  Rxc3+ {[%clk 0:01:04]} 35. Kb2 {[%clk 0:00:25]}  Rc5 {[%clk 0:01:03]} 36. Bxc6 {[%clk 0:00:25]}  Rxc6 {[%clk 0:01:03]} 37. Rd5 {[%clk 0:00:25]}  Ke6 {[%clk 0:01:02]} 38. Rxa5 {[%clk 0:00:25]}  Rc4 {[%clk 0:01:02]} 39. Ra7 {[%clk 0:00:25]}  Kd6 {[%clk 0:01:01]} 40. a5 {[%clk 0:00:20]}  Rxe4 {[%clk 0:01:00]} 41. Ra8 {[%clk 0:00:21]}  Kc6 {[%clk 0:00:59]} 42. a6 {[%clk 0:00:17]}  Kb6 {[%clk 0:00:58]} 43. Rh8 {[%clk 0:00:16]}  Re2+ {[%clk 0:00:58]} 44. Kc3 {[%clk 0:00:16]}  Rxh2 {[%clk 0:00:58]} 45. Kd3 {[%clk 0:00:14]}  Kxa6 {[%clk 0:00:58]} 0-1


[Site "https://www.chess.com"]

[Event "Titled Tuesday Blitz August 24 2021"]
[White "Mirzoev, Azer"]
[Black "Quiroga Garza, Juan Manuel"]
[WhiteFideId "13400304"]
[BlackFideId "5117844"]
[WhiteElo "2525"]
[BlackElo "2003"]
[Result "1-0"]
[Round "01"]
[TimeControl "180+1"]
[Date "2021.08.24"]
[WhiteClock "0:02:04"]
[BlackClock "0:02:03"]

1. c4 {[%clk 0:03:00]}  Nf6 {[%clk 0:02:59]} 2. Nc3 {[%clk 0:02:59]}  d6 {[%clk 0:02:58]} 3. d4 {[%clk 0:02:58]}  g6 {[%clk 0:02:56]} 4. e4 {[%clk 0:02:58]}  Bg7 {[%clk 0:02:57]} 5. f3 {[%clk 0:02:59]}  O-O {[%clk 0:02:57]} 6. Be3 {[%clk 0:02:59]}  e5 {[%clk 0:02:57]} 7. Nge2 {[%clk 0:02:58]}  Nc6 {[%clk 0:02:56]} 8. Qd2 {[%clk 0:02:58]}  Re8 {[%clk 0:02:48]} 9. O-O-O {[%clk 0:02:57]}  Nh5 {[%clk 0:02:44]} 10. d5 {[%clk 0:02:55]}  Ne7 {[%clk 0:02:43]} 11. g4 {[%clk 0:02:54]}  Nf4 {[%clk 0:02:38]} 12. Nxf4 {[%clk 0:02:53]}  exf4 {[%clk 0:02:39]} 13. Bxf4 {[%clk 0:02:53]}  Kh8 {[%clk 0:02:32]} 14. Bh6 {[%clk 0:02:48]}  Ng8 {[%clk 0:02:28]} 15. Bxg7+ {[%clk 0:02:47]}  Kxg7 {[%clk 0:02:29]} 16. h4 {[%clk 0:02:47]}  Bd7 {[%clk 0:02:27]} 17. Be2 {[%clk 0:02:45]}  Qf6 {[%clk 0:02:21]} 18. g5 {[%clk 0:02:43]}  Qe5 {[%clk 0:02:21]} 19. f4 {[%clk 0:02:40]}  Qe7 {[%clk 0:02:21]} 20. h5 {[%clk 0:02:39]}  f5 {[%clk 0:02:16]} 21. Qd4+ {[%clk 0:02:33]}  Kf8 {[%clk 0:02:15]} 22. hxg6 {[%clk 0:02:32]}  hxg6 {[%clk 0:02:14]} 23. Bd3 {[%clk 0:02:27]}  Qg7 {[%clk 0:02:12]} 24. Qxg7+ {[%clk 0:02:23]}  Kxg7 {[%clk 0:02:12]} 25. exf5 {[%clk 0:02:24]}  Bxf5 {[%clk 0:02:12]} 26. Bxf5 {[%clk 0:02:23]}  gxf5 {[%clk 0:02:13]} 27. Nb5 {[%clk 0:02:23]}  Re7 {[%clk 0:02:11]} 28. Nd4 {[%clk 0:02:21]}  Kg6 {[%clk 0:02:08]} 29. b3 {[%clk 0:02:15]}  Rae8 {[%clk 0:02:06]} 30. Ne6 {[%clk 0:02:13]}  c6 {[%clk 0:02:05]} 31. Rh8 {[%clk 0:02:08]}  cxd5 {[%clk 0:02:05]} 32. cxd5 {[%clk 0:02:09]}  Rc8+ {[%clk 0:02:04]} 33. Kb2 {[%clk 0:02:08]}  Kf7 {[%clk 0:02:03]} 34. Rdh1 {[%clk 0:02:04]} 1-0


[Site "https://www.chess.com"]